[Event "*** SCC Grand Prix: Titled Tuesday Blitz"]
[Site "Chess.com"]
[Date "2020.10.13"]
[Round "8"]
[White "Ajedrez_con_German"]
[Black "Sueetin"]
[Result "1-0"]
[WhiteElo "2495"]
[BlackElo "2276"]
[TimeControl "180+1"]
[EndTime "11:35:27 PDT"]
[Termination "Ajedrez_con_German won by resignation"]

1. d4 {[%clk 0:03:00.9]} 1... Nf6 {[%clk 0:02:59.6]} 2. Bf4 {[%clk 0:03:00.2]}
2... b6 {[%clk 0:02:59.3]} 3. e3 {[%clk 0:02:56.1]} 3... Bb7 {[%clk 0:02:59.5]}
4. Nf3 {[%clk 0:02:55.6]} 4... g6 {[%clk 0:03:00]} 5. Be2 {[%clk 0:02:54.8]}
5... Bg7 {[%clk 0:03:00.5]} 6. O-O {[%clk 0:02:53.7]} 6... d6 {[%clk 0:03:00.8]}
7. c4 {[%clk 0:02:53.1]} 7... O-O {[%clk 0:03:00.2]} 8. h3 {[%clk 0:02:52.9]}
8... Nbd7 {[%clk 0:02:57.6]} 9. Nc3 {[%clk 0:02:47.6]} 9... Re8 {[%clk
0:02:53.9]} 10. Rc1 {[%clk 0:02:43.7]} 10... e5 {[%clk 0:02:51.8]} 11. Bh2
{[%clk 0:02:43.5]} 11... a6 {[%clk 0:02:37.3]} 12. b4 {[%clk 0:02:40.5]} 12...
exd4 {[%clk 0:02:32.6]} 13. Nxd4 {[%clk 0:02:31.6]} 13... Ne4 {[%clk 0:02:13.2]}
14. Nxe4 {[%clk 0:02:24.4]} 14... Bxe4 {[%clk 0:02:13.3]} 15. Bf3 {[%clk
0:02:17.1]} 15... Bxd4 {[%clk 0:02:06.6]} 16. exd4 {[%clk 0:02:10.4]} 16... Qf6
{[%clk 0:01:56.7]} 17. Bg4 {[%clk 0:01:32.7]} 17... Nf8 {[%clk 0:01:45.6]} 18.
Re1 {[%clk 0:01:22.8]} 18... h5 {[%clk 0:01:38.8]} 19. Be2 {[%clk 0:00:46.6]}
19... Ne6 {[%clk 0:01:36.1]} 20. d5 {[%clk 0:00:30.1]} 20... Nf4 {[%clk
0:01:12.6]} 21. Bxf4 {[%clk 0:00:29.3]} 21... Qxf4 {[%clk 0:01:13.5]} 22. Bf1
{[%clk 0:00:24.2]} 22... a5 {[%clk 0:01:00.1]} 23. Qd4 {[%clk 0:00:17.7]} 23...
Qf5 {[%clk 0:00:33.4]} 24. a3 {[%clk 0:00:12]} 24... axb4 {[%clk 0:00:31.8]} 25.
axb4 {[%clk 0:00:12.9]} 25... h4 {[%clk 0:00:30.6]} 26. f3 {[%clk 0:00:08.9]}
26... Bc2 {[%clk 0:00:25.3]} 27. Qc3 {[%clk 0:00:04.9]} 27... Ba4 {[%clk
0:00:21]} 28. Rxe8+ {[%clk 0:00:04.7]} 28... Rxe8 {[%clk 0:00:20.5]} 29. Re1
{[%clk 0:00:04.1]} 29... Rxe1 {[%clk 0:00:19]} 30. Qxe1 {[%clk 0:00:05]} 30...
Kf8 {[%clk 0:00:15.8]} 31. Qxh4 {[%clk 0:00:04.7]} 31... Ke8 {[%clk 0:00:09]}
32. Qf2 {[%clk 0:00:03.4]} 32... Bd7 {[%clk 0:00:07.1]} 33. b5 {[%clk
0:00:03.3]} 33... Qe5 {[%clk 0:00:07]} 34. Qe2 {[%clk 0:00:03.5]} 34... Ke7
{[%clk 0:00:04.7]} 35. f4 {[%clk 0:00:03.5]} 35... Qxe2 {[%clk 0:00:04.3]} 36.
Bxe2 {[%clk 0:00:04.4]} 36... Bf5 {[%clk 0:00:04.2]} 37. Kf2 {[%clk 0:00:04.7]}
37... Kf6 {[%clk 0:00:04.3]} 38. Ke3 {[%clk 0:00:05.3]} 38... Bc2 {[%clk
0:00:04.4]} 39. g4 {[%clk 0:00:05.5]} 39... Bb3 {[%clk 0:00:04.3]} 40. g5+
{[%clk 0:00:05.2]} 40... Ke7 {[%clk 0:00:03.9]} 41. Bd3 {[%clk 0:00:05]} 41...
Bd1 {[%clk 0:00:03.7]} 42. Be2 {[%clk 0:00:05.1]} 42... Bc2 {[%clk 0:00:03.5]}
43. Kf2 {[%clk 0:00:05.4]} 43... Bf5 {[%clk 0:00:03.5]} 44. Kg3 {[%clk
0:00:05.4]} 44... Ke8 {[%clk 0:00:04]} 45. h4 {[%clk 0:00:05.8]} 45... Bc2
{[%clk 0:00:04.1]} 46. Kf2 {[%clk 0:00:04.8]} 46... Kf8 {[%clk 0:00:04.2]} 47.
Ke3 {[%clk 0:00:05.3]} 47... Ke7 {[%clk 0:00:04.7]} 48. Bd3 {[%clk 0:00:05.1]}
48... Bd1 {[%clk 0:00:05]} 49. f5 {[%clk 0:00:05.3]} 49... Bh5 {[%clk
0:00:04.1]} 50. Kf4 {[%clk 0:00:05.6]} 50... Kf8 {[%clk 0:00:04.2]} 51. f6
{[%clk 0:00:04.6]} 51... Ke8 {[%clk 0:00:04.1]} 52. Ke3 {[%clk 0:00:05]} 52...
Bd1 {[%clk 0:00:03.3]} 53. Be2 {[%clk 0:00:05.1]} 53... Bc2 {[%clk 0:00:03.5]}
54. Kd2 {[%clk 0:00:05.3]} 54... Bf5 {[%clk 0:00:03.1]} 55. Ke3 {[%clk
0:00:05.6]} 55... Bc2 {[%clk 0:00:02.9]} 56. h5 {[%clk 0:00:05.5]} 56... gxh5
{[%clk 0:00:02.8]} 57. Bxh5 {[%clk 0:00:06.1]} 57... Bh7 {[%clk 0:00:03.4]} 58.
Kf4 {[%clk 0:00:05.9]} 58... Kf8 {[%clk 0:00:03.7]} 59. Be2 {[%clk 0:00:05.4]}
59... Bc2 {[%clk 0:00:03.9]} 60. Ke3 {[%clk 0:00:05.3]} 60... Bf5 {[%clk
0:00:03.9]} 61. Bd3 {[%clk 0:00:05.5]} 61... Bh3 {[%clk 0:00:04.1]} 62. Kf4
{[%clk 0:00:05.7]} 62... Bg2 {[%clk 0:00:03.8]} 63. g6 {[%clk 0:00:05.4]} 63...
fxg6 {[%clk 0:00:04]} 64. Kg5 {[%clk 0:00:06]} 64... Bf3 {[%clk 0:00:03.3]} 65.
Kxg6 {[%clk 0:00:05.9]} 65... Bg2 {[%clk 0:00:03.6]} 66. f7 {[%clk 0:00:06]}
66... Bh3 {[%clk 0:00:03.5]} 67. Kf6 {[%clk 0:00:06.3]} 67... Bg4 {[%clk
0:00:03.3]} 68. Bf5 {[%clk 0:00:06.2]} 68... Be2 {[%clk 0:00:03.5]} 69. Bd7
{[%clk 0:00:04.9]} 69... Bxc4 {[%clk 0:00:03.4]} 70. Bc6 {[%clk 0:00:05.4]}
70... Bd3 {[%clk 0:00:01.3]} 71. Ke6 {[%clk 0:00:05.6]} 71... Be2 {[%clk
0:00:01]} 72. Kd7 {[%clk 0:00:06]} 72... Kxf7 {[%clk 0:00:01.6]} 73. Kxc7 {[%clk
0:00:06.6]} 73... Ke7 {[%clk 0:00:02.2]} 74. Kxb6 {[%clk 0:00:07.1]} 74... Bg4
{[%clk 0:00:02.3]} 75. Ka7 {[%clk 0:00:07.4]} 75... Bd7 {[%clk 0:00:02.3]} 76.
Bxd7 {[%clk 0:00:07]} 76... Kxd7 {[%clk 0:00:03.2]} 77. b6 {[%clk 0:00:07.6]}
1-0

[Event "*** SCC Grand Prix: Titled Tuesday Blitz"]
[Site "Chess.com"]
[Date "2020.10.13"]
[Round "8"]
[White "monalize"]
[Black "CarlssonLudvig"]
[Result "1-0"]
[WhiteElo "2313"]
[BlackElo "2455"]
[TimeControl "180+1"]
[EndTime "11:35:27 PDT"]
[Termination "monalize won on time"]

1. e4 {[%clk 0:03:00.9]} 1... e5 {[%clk 0:02:58.7]} 2. Nf3 {[%clk 0:02:58.2]}
2... Nc6 {[%clk 0:02:58.2]} 3. Bb5 {[%clk 0:02:57.9]} 3... a6 {[%clk 0:02:57.2]}
4. Bxc6 {[%clk 0:02:57.6]} 4... dxc6 {[%clk 0:02:58.1]} 5. O-O {[%clk
0:02:57.3]} 5... Bd6 {[%clk 0:02:47.5]} 6. d4 {[%clk 0:02:56]} 6... exd4 {[%clk
0:02:47.1]} 7. Qxd4 {[%clk 0:02:54.8]} 7... f6 {[%clk 0:02:46.4]} 8. Be3 {[%clk
0:02:53.9]} 8... Ne7 {[%clk 0:02:45.1]} 9. Nbd2 {[%clk 0:02:53.1]} 9... Be6
{[%clk 0:02:44.9]} 10. Qc3 {[%clk 0:02:52.7]} 10... Qd7 {[%clk 0:02:43.2]} 11.
Nc4 {[%clk 0:02:45.4]} 11... Bxc4 {[%clk 0:02:41.7]} 12. Qxc4 {[%clk 0:02:44.9]}
12... O-O-O {[%clk 0:02:41.7]} 13. Rad1 {[%clk 0:02:38.7]} 13... Qg4 {[%clk
0:02:39.4]} 14. h3 {[%clk 0:02:37.5]} 14... Qh5 {[%clk 0:02:38.7]} 15. Qe6+
{[%clk 0:02:23.3]} 15... Rd7 {[%clk 0:02:38.9]} 16. Bf4 {[%clk 0:02:18.4]} 16...
Qc5 {[%clk 0:02:26.6]} 17. Rd2 {[%clk 0:02:02.1]} 17... Rd8 {[%clk 0:02:22.2]}
18. Rfd1 {[%clk 0:02:00.8]} 18... Kb8 {[%clk 0:02:16.6]} 19. c3 {[%clk
0:01:54.8]} 19... Ng6 {[%clk 0:02:12]} 20. Be3 {[%clk 0:01:47.2]} 20... Qh5
{[%clk 0:02:03]} 21. Qg4 {[%clk 0:01:40.9]} 21... Qxg4 {[%clk 0:02:01.1]} 22.
hxg4 {[%clk 0:01:40.4]} 22... Kc8 {[%clk 0:02:01.7]} 23. Kf1 {[%clk 0:01:37.7]}
23... b5 {[%clk 0:01:58.8]} 24. Nd4 {[%clk 0:01:33.7]} 24... Re8 {[%clk
0:01:56]} 25. f3 {[%clk 0:01:31.7]} 25... Ne7 {[%clk 0:01:54.2]} 26. Ne6 {[%clk
0:01:25]} 26... Ng6 {[%clk 0:01:47.8]} 27. Nc5 {[%clk 0:01:21.8]} 27... Rde7
{[%clk 0:01:46.4]} 28. Nb3 {[%clk 0:01:21.6]} 28... Ne5 {[%clk 0:01:41.5]} 29.
Bc5 {[%clk 0:01:16.2]} 29... Nc4 {[%clk 0:01:40.3]} 30. Re2 {[%clk 0:01:15.8]}
30... Rd8 {[%clk 0:01:28.3]} 31. Bf2 {[%clk 0:01:12.5]} 31... Kb7 {[%clk
0:01:24.6]} 32. Rd4 {[%clk 0:01:03.4]} 32... Red7 {[%clk 0:01:21.8]} 33. Rxc4
{[%clk 0:01:01.3]} 33... bxc4 {[%clk 0:01:21]} 34. Na5+ {[%clk 0:01:01.1]} 34...
Kc8 {[%clk 0:01:20.2]} 35. Nxc6 {[%clk 0:00:59.7]} 35... Re8 {[%clk 0:01:21.1]}
36. Na5 {[%clk 0:00:59.2]} 36... Bf4 {[%clk 0:01:18.3]} 37. Nxc4 {[%clk
0:00:58.1]} 37... Rd1+ {[%clk 0:01:14.6]} 38. Re1 {[%clk 0:00:57.1]} 38... Red8
{[%clk 0:01:13.4]} 39. Bd4 {[%clk 0:00:53.6]} 39... Rxe1+ {[%clk 0:01:09.5]} 40.
Kxe1 {[%clk 0:00:54.5]} 40... Bg3+ {[%clk 0:01:09.4]} 41. Ke2 {[%clk 0:00:54.2]}
41... Bf4 {[%clk 0:01:08.5]} 42. b4 {[%clk 0:00:52.5]} 42... Rh8 {[%clk
0:01:02.2]} 43. Ne3 {[%clk 0:00:44.9]} 43... Bxe3 {[%clk 0:01:01.6]} 44. Kxe3
{[%clk 0:00:44.4]} 44... h5 {[%clk 0:01:02.5]} 45. gxh5 {[%clk 0:00:44.2]} 45...
Rxh5 {[%clk 0:01:03.3]} 46. a4 {[%clk 0:00:43.9]} 46... a5 {[%clk 0:00:59]} 47.
g4 {[%clk 0:00:38.8]} 47... Rh2 {[%clk 0:00:58]} 48. bxa5 {[%clk 0:00:37.9]}
48... Ra2 {[%clk 0:00:58.1]} 49. a6 {[%clk 0:00:37.7]} 49... Rxa4 {[%clk
0:00:57.2]} 50. a7 {[%clk 0:00:37.7]} 50... Kb7 {[%clk 0:00:56.8]} 51. g5 {[%clk
0:00:37.2]} 51... fxg5 {[%clk 0:00:56.3]} 52. Kf2 {[%clk 0:00:37.4]} 52... Ra5
{[%clk 0:00:54.4]} 53. Kg3 {[%clk 0:00:35.1]} 53... c5 {[%clk 0:00:54.6]} 54.
Bxg7 {[%clk 0:00:34.3]} 54... Kxa7 {[%clk 0:00:54.8]} 55. Kg4 {[%clk 0:00:34.5]}
55... c4 {[%clk 0:00:55.3]} 56. Bf6 {[%clk 0:00:32.9]} 56... Ra3 {[%clk
0:00:54.2]} 57. Kxg5 {[%clk 0:00:32.4]} 57... Kb7 {[%clk 0:00:54.7]} 58. f4
{[%clk 0:00:32.1]} 58... Kc6 {[%clk 0:00:55.2]} 59. Bd4 {[%clk 0:00:31.8]} 59...
Ra2 {[%clk 0:00:52.8]} 60. f5 {[%clk 0:00:31.8]} 60... Rg2+ {[%clk 0:00:51.5]}
61. Kf4 {[%clk 0:00:31.1]} 61... Kd6 {[%clk 0:00:50.5]} 62. e5+ {[%clk
0:00:30.8]} 62... Kd5 {[%clk 0:00:50.6]} 63. e6 {[%clk 0:00:30.7]} 63... Re2
{[%clk 0:00:48.3]} 64. Kg5 {[%clk 0:00:29]} 64... Rg2+ {[%clk 0:00:46.5]} 65.
Kf6 {[%clk 0:00:28.6]} 65... Kd6 {[%clk 0:00:39.2]} 66. Be5+ {[%clk 0:00:25.8]}
66... Kc6 {[%clk 0:00:35.9]} 67. Bd4 {[%clk 0:00:20.8]} 67... Re2 {[%clk
0:00:29.6]} 68. Ke7 {[%clk 0:00:19.9]} 68... Kd5 {[%clk 0:00:28.3]} 69. Bg7
{[%clk 0:00:17.6]} 69... Re3 {[%clk 0:00:25.2]} 70. Kd7 {[%clk 0:00:16.2]} 70...
Rg3 {[%clk 0:00:20.9]} 71. Bd4 {[%clk 0:00:14.7]} 71... Rg8 {[%clk 0:00:14.9]}
72. e7 {[%clk 0:00:14.5]} 72... Ke4 {[%clk 0:00:13.3]} 73. f6 {[%clk 0:00:14.5]}
73... Rb8 {[%clk 0:00:11]} 74. f7 {[%clk 0:00:14.4]} 74... Rb7+ {[%clk
0:00:10.9]} 75. Kd6 {[%clk 0:00:14.5]} 75... Kd3 {[%clk 0:00:06.7]} 76. e8=Q
{[%clk 0:00:13.6]} 76... Kc2 {[%clk 0:00:05.8]} 77. Qe2+ {[%clk 0:00:12.8]}
77... Kb3 {[%clk 0:00:05.7]} 78. f8=Q {[%clk 0:00:12]} 1-0

[Event "*** SCC Grand Prix: Titled Tuesday Blitz"]
[Site "Chess.com"]
[Date "2020.10.13"]
[Round "8"]
[White "OlympusMons95"]
[Black "bait_or_mate"]
[Result "1-0"]
[WhiteElo "2713"]
[BlackElo "2524"]
[TimeControl "180+1"]
[EndTime "11:35:29 PDT"]
[Termination "OlympusMons95 won by resignation"]

1. f4 {[%clk 0:03:00.9]} 1... g6 {[%clk 0:02:53.9]} 2. e4 {[%clk 0:03:00]} 2...
c5 {[%clk 0:02:52.6]} 3. d4 {[%clk 0:02:53.2]} 3... cxd4 {[%clk 0:02:52.2]} 4.
Qxd4 {[%clk 0:02:52.6]} 4... Nf6 {[%clk 0:02:51.8]} 5. e5 {[%clk 0:02:52.8]}
5... Nc6 {[%clk 0:02:51.9]} 6. Qd1 {[%clk 0:02:33.4]} 6... Ne4 {[%clk
0:02:44.8]} 7. Bd3 {[%clk 0:02:32.6]} 7... Nc5 {[%clk 0:02:40.7]} 8. Be3 {[%clk
0:02:32.7]} 8... Nxd3+ {[%clk 0:02:40.4]} 9. Qxd3 {[%clk 0:02:33.6]} 9... Bg7
{[%clk 0:02:38.7]} 10. Nc3 {[%clk 0:02:34]} 10... O-O {[%clk 0:02:31.8]} 11.
O-O-O {[%clk 0:02:34]} 11... d6 {[%clk 0:02:25.5]} 12. exd6 {[%clk 0:02:28.6]}
12... Bf5 {[%clk 0:02:24]} 13. Qd2 {[%clk 0:02:21.4]} 13... exd6 {[%clk
0:02:16.6]} 14. Nf3 {[%clk 0:02:21.4]} 14... Qa5 {[%clk 0:02:11.6]} 15. Nd4
{[%clk 0:02:17.6]} 15... Bg4 {[%clk 0:01:54.7]} 16. Rde1 {[%clk 0:02:14.5]}
16... Rac8 {[%clk 0:01:43]} 17. h3 {[%clk 0:02:01.2]} 17... Bd7 {[%clk
0:00:57.1]} 18. a3 {[%clk 0:01:44.1]} 18... Rfd8 {[%clk 0:00:50.5]} 19. g4
{[%clk 0:01:38.8]} 19... a6 {[%clk 0:00:22.4]} 20. Rd1 {[%clk 0:01:19.9]} 20...
b5 {[%clk 0:00:20.4]} 21. Nd5 {[%clk 0:01:18.8]} 21... Kh8 {[%clk 0:00:11.1]}
22. Rhe1 {[%clk 0:01:06.5]} 22... Qxd2+ {[%clk 0:00:10.6]} 23. Rxd2 {[%clk
0:01:07.4]} 23... Nxd4 {[%clk 0:00:09.7]} 24. Bxd4 {[%clk 0:01:06.9]} 24... Bxd4
{[%clk 0:00:10.6]} 25. Rxd4 {[%clk 0:01:07.5]} 25... Be6 {[%clk 0:00:10.9]} 26.
Kd2 {[%clk 0:00:57.5]} 26... Kg7 {[%clk 0:00:10.8]} 27. c3 {[%clk 0:00:52.6]}
27... Rc5 {[%clk 0:00:10.8]} 28. Ne3 {[%clk 0:00:52.2]} 28... d5 {[%clk
0:00:06.1]} 29. Rf1 {[%clk 0:00:52.2]} 29... Bc8 {[%clk 0:00:04.9]} 30. f5
{[%clk 0:00:50.3]} 30... gxf5 {[%clk 0:00:03.3]} 31. Nxf5+ {[%clk 0:00:49.9]}
31... Bxf5 {[%clk 0:00:03.5]} 32. Rxf5 {[%clk 0:00:50.8]} 32... f6 {[%clk
0:00:03.1]} 33. Rdf4 {[%clk 0:00:49.2]} 33... Rd6 {[%clk 0:00:03.3]} 34. g5
{[%clk 0:00:49.4]} 34... fxg5 {[%clk 0:00:02.3]} 35. Rxg5+ {[%clk 0:00:50.3]}
35... Kh6 {[%clk 0:00:02.2]} 36. h4 {[%clk 0:00:47.7]} 36... Rc4 {[%clk
0:00:02.2]} 37. Rd4 {[%clk 0:00:40.4]} 37... Rxd4+ {[%clk 0:00:02.4]} 38. cxd4
{[%clk 0:00:41.3]} 38... Rd7 {[%clk 0:00:02.8]} 39. Kd3 {[%clk 0:00:40.3]} 39...
Rd8 {[%clk 0:00:03.2]} 40. Re5 {[%clk 0:00:36.2]} 40... Rd6 {[%clk 0:00:03.2]}
41. Ke3 {[%clk 0:00:34.6]} 41... Kg6 {[%clk 0:00:03.6]} 42. Kf4 {[%clk
0:00:34.3]} 42... Kf6 {[%clk 0:00:04]} 43. Rh5 {[%clk 0:00:33.1]} 43... Kg6
{[%clk 0:00:04.3]} 44. Rg5+ {[%clk 0:00:33.2]} 44... Kf6 {[%clk 0:00:04.8]} 45.
Rg8 {[%clk 0:00:33.3]} 45... Kf7 {[%clk 0:00:04.5]} 46. Ra8 {[%clk 0:00:32]}
46... Rh6 {[%clk 0:00:04.6]} 47. Ra7+ {[%clk 0:00:31.4]} 47... Ke8 {[%clk
0:00:04.3]} 48. Kg5 {[%clk 0:00:31]} 48... Rg6+ {[%clk 0:00:04.4]} 49. Kf5
{[%clk 0:00:31.4]} 49... Rh6 {[%clk 0:00:04.6]} 50. Ke5 {[%clk 0:00:30.2]} 50...
Rxh4 {[%clk 0:00:04.7]} 51. Kxd5 {[%clk 0:00:30.5]} 51... Rh2 {[%clk 0:00:05.1]}
52. Ke6 {[%clk 0:00:30.1]} 52... Kd8 {[%clk 0:00:04.7]} 53. d5 {[%clk
0:00:29.7]} 53... Re2+ {[%clk 0:00:04.6]} 54. Kd6 {[%clk 0:00:29.4]} 54... Kc8
{[%clk 0:00:05.1]} 55. b4 {[%clk 0:00:28.6]} 55... h5 {[%clk 0:00:03.3]} 56.
Rxa6 {[%clk 0:00:26.8]} 56... Re3 {[%clk 0:00:02.9]} 57. Ra8+ {[%clk 0:00:25.7]}
57... Kb7 {[%clk 0:00:03.1]} 58. Rh8 {[%clk 0:00:26.6]} 58... Rxa3 {[%clk
0:00:01.6]} 59. Rxh5 {[%clk 0:00:24.9]} 59... Rb3 {[%clk 0:00:02.1]} 60. Kc5
{[%clk 0:00:24.2]} 60... Rd3 {[%clk 0:00:02.3]} 61. Kxb5 {[%clk 0:00:24.6]}
61... Kc7 {[%clk 0:00:02]} 62. Kc4 {[%clk 0:00:24.1]} 62... Rd1 {[%clk
0:00:01.9]} 63. Rh7+ {[%clk 0:00:24.3]} 63... Kb6 {[%clk 0:00:02.3]} 64. Rh6+
{[%clk 0:00:25.2]} 64... Kc7 {[%clk 0:00:02.1]} 65. Kc5 {[%clk 0:00:25.2]} 65...
Rc1+ {[%clk 0:00:02.3]} 66. Kb5 {[%clk 0:00:25.5]} 66... Rd1 {[%clk 0:00:03.2]}
67. Rh7+ {[%clk 0:00:25.7]} 67... Kd6 {[%clk 0:00:02.7]} 68. Kb6 {[%clk
0:00:25.7]} 68... Rxd5 {[%clk 0:00:01.6]} 69. b5 {[%clk 0:00:26]} 69... Rd1
{[%clk 0:00:02.2]} 70. Rc7 {[%clk 0:00:24.1]} 70... Rd2 {[%clk 0:00:01.9]} 71.
Rc1 {[%clk 0:00:23.7]} 71... Rd3 {[%clk 0:00:02.2]} 72. Kb7 {[%clk 0:00:23.6]}
72... Kd7 {[%clk 0:00:02.7]} 73. b6 {[%clk 0:00:23.7]} 73... Ra3 {[%clk
0:00:02.8]} 74. Kb8 {[%clk 0:00:23.7]} 74... Rb3 {[%clk 0:00:02.7]} 75. b7
{[%clk 0:00:23.9]} 75... Ra3 {[%clk 0:00:02.8]} 76. Rd1+ {[%clk 0:00:23.6]}
76... Ke7 {[%clk 0:00:01.8]} 77. Rd4 {[%clk 0:00:23.3]} 77... Rc3 {[%clk
0:00:01]} 78. Ka7 {[%clk 0:00:23.2]} 78... Ra3+ {[%clk 0:00:01.4]} 79. Kb6
{[%clk 0:00:23.5]} 79... Rb3+ {[%clk 0:00:01.9]} 80. Kc6 {[%clk 0:00:23.8]}
80... Rc3+ {[%clk 0:00:02]} 81. Kb5 {[%clk 0:00:23.9]} 81... Rb3+ {[%clk
0:00:02.2]} 82. Rb4 {[%clk 0:00:23.9]} 82... Rxb4+ {[%clk 0:00:02.7]} 83. Kxb4
{[%clk 0:00:24.8]} 1-0

[Event "*** SCC Grand Prix: Titled Tuesday Blitz"]
[Site "Chess.com"]
[Date "2020.10.13"]
[Round "8"]
[White "Gusarov91"]
[Black "JoakimVonAnd"]
[Result "1/2-1/2"]
[WhiteElo "2565"]
[BlackElo "2490"]
[TimeControl "180+1"]
[EndTime "11:35:31 PDT"]
[Termination "Game drawn - insufficient material"]

1. d4 {[%clk 0:03:00.9]} 1... Nf6 {[%clk 0:02:55.3]} 2. Nf3 {[%clk 0:03:00.8]}
2... d5 {[%clk 0:02:54.7]} 3. c4 {[%clk 0:03:00.7]} 3... e6 {[%clk 0:02:54.9]}
4. Nc3 {[%clk 0:03:00.8]} 4... c6 {[%clk 0:02:54.5]} 5. Qb3 {[%clk 0:03:00.2]}
5... dxc4 {[%clk 0:02:49.9]} 6. Qxc4 {[%clk 0:03:00.2]} 6... b5 {[%clk
0:02:50.6]} 7. Qb3 {[%clk 0:03:00.7]} 7... Bb7 {[%clk 0:02:51.1]} 8. Bg5 {[%clk
0:03:00.6]} 8... Nbd7 {[%clk 0:02:49.5]} 9. e3 {[%clk 0:03:01.1]} 9... a6 {[%clk
0:02:47.5]} 10. Be2 {[%clk 0:03:00.7]} 10... Qb6 {[%clk 0:02:46]} 11. O-O {[%clk
0:03:00.1]} 11... c5 {[%clk 0:02:42.6]} 12. Rfc1 {[%clk 0:02:52.5]} 12... h6
{[%clk 0:02:39.7]} 13. Bh4 {[%clk 0:02:51.8]} 13... cxd4 {[%clk 0:02:36]} 14.
Nxd4 {[%clk 0:02:51.1]} 14... Bc5 {[%clk 0:02:35.7]} 15. Bf3 {[%clk 0:02:39.2]}
15... Bxd4 {[%clk 0:02:24.7]} 16. Bxb7 {[%clk 0:02:38.7]} 16... Qxb7 {[%clk
0:02:25.6]} 17. exd4 {[%clk 0:02:38.7]} 17... O-O {[%clk 0:02:23.4]} 18. a4
{[%clk 0:02:22.2]} 18... b4 {[%clk 0:02:13.9]} 19. a5 {[%clk 0:02:22.7]} 19...
Qa7 {[%clk 0:01:49.6]} 20. Qxb4 {[%clk 0:02:16.1]} 20... Rab8 {[%clk 0:01:48.7]}
21. Qc4 {[%clk 0:01:52.7]} 21... Rxb2 {[%clk 0:01:42.7]} 22. Rab1 {[%clk
0:01:52.6]} 22... Rfb8 {[%clk 0:01:39.5]} 23. Rxb2 {[%clk 0:01:52.4]} 23... Rxb2
{[%clk 0:01:40.4]} 24. d5 {[%clk 0:01:48.7]} 24... Ne5 {[%clk 0:01:18.1]} 25.
Qc8+ {[%clk 0:01:43.7]} 25... Kh7 {[%clk 0:01:18.2]} 26. Nd1 {[%clk 0:01:41.2]}
26... Re2 {[%clk 0:00:59.8]} 27. Nc3 {[%clk 0:01:34.8]} 27... Rd2 {[%clk
0:00:54.9]} 28. dxe6 {[%clk 0:01:32.8]} 28... Ng6 {[%clk 0:00:51.3]} 29. Bg3
{[%clk 0:00:52.3]} 29... fxe6 {[%clk 0:00:49.5]} 30. Qxe6 {[%clk 0:00:51.8]}
30... Qc5 {[%clk 0:00:49.6]} 31. Qe1 {[%clk 0:00:51.1]} 31... Rd7 {[%clk
0:00:38.4]} 32. Ne4 {[%clk 0:00:49.5]} 32... Qf5 {[%clk 0:00:37.6]} 33. Nxf6+
{[%clk 0:00:49.2]} 33... Qxf6 {[%clk 0:00:38.5]} 34. h3 {[%clk 0:00:48.3]} 34...
Rd5 {[%clk 0:00:38]} 35. Rc7 {[%clk 0:00:46.7]} 35... Qg5 {[%clk 0:00:29.7]} 36.
Qa1 {[%clk 0:00:38.2]} 36... Nf8 {[%clk 0:00:24.8]} 37. Qb1+ {[%clk 0:00:32.2]}
37... Ng6 {[%clk 0:00:24.4]} 38. Qb2 {[%clk 0:00:29.9]} 38... Nf8 {[%clk
0:00:19.9]} 39. Qc2+ {[%clk 0:00:29.7]} 39... Ng6 {[%clk 0:00:19.3]} 40. Qc3
{[%clk 0:00:30]} 40... Nf8 {[%clk 0:00:19.5]} 41. Qf3 {[%clk 0:00:21.4]} 41...
Ne6 {[%clk 0:00:18.5]} 42. Ra7 {[%clk 0:00:16.7]} 42... Rxa5 {[%clk 0:00:16.4]}
43. Qe4+ {[%clk 0:00:17.2]} 43... Qg6 {[%clk 0:00:14]} 44. Qc6 {[%clk
0:00:12.4]} 44... Ra1+ {[%clk 0:00:12.6]} 45. Kh2 {[%clk 0:00:12.8]} 45... Ng5
{[%clk 0:00:11]} 46. Qxg6+ {[%clk 0:00:10.6]} 46... Kxg6 {[%clk 0:00:11.9]} 47.
f3 {[%clk 0:00:11.2]} 47... Nf7 {[%clk 0:00:09.6]} 48. h4 {[%clk 0:00:10.9]}
48... h5 {[%clk 0:00:08.9]} 49. Bf4 {[%clk 0:00:11]} 49... a5 {[%clk 0:00:09.2]}
50. Be3 {[%clk 0:00:11.5]} 50... a4 {[%clk 0:00:08.2]} 51. Bd4 {[%clk
0:00:12.1]} 51... Ra2 {[%clk 0:00:08.7]} 52. Kg3 {[%clk 0:00:12.3]} 52... a3
{[%clk 0:00:07.8]} 53. Bc5 {[%clk 0:00:12.1]} 53... Rc2 {[%clk 0:00:08]} 54.
Bxa3 {[%clk 0:00:11.9]} 54... Ra2 {[%clk 0:00:08.4]} 55. Bc5 {[%clk 0:00:12.1]}
55... Rxa7 {[%clk 0:00:08.3]} 56. Bxa7 {[%clk 0:00:13]} 56... Nh6 {[%clk
0:00:08.8]} 57. Bf2 {[%clk 0:00:12]} 57... Nf5+ {[%clk 0:00:09.7]} 58. Kf4
{[%clk 0:00:12.5]} 58... Ne7 {[%clk 0:00:09.9]} 59. Ke5 {[%clk 0:00:12.7]} 59...
Nf5 {[%clk 0:00:10]} 60. Ke6 {[%clk 0:00:11.9]} 60... Nh6 {[%clk 0:00:08.3]} 61.
g3 {[%clk 0:00:10.2]} 61... Nf5 {[%clk 0:00:08.1]} 62. Ke5 {[%clk 0:00:09]}
62... Nh6 {[%clk 0:00:07.7]} 63. Kf4 {[%clk 0:00:09.5]} 63... Nf5 {[%clk
0:00:07.9]} 64. Be1 {[%clk 0:00:09.3]} 64... Nh6 {[%clk 0:00:07.6]} 65. Bc3
{[%clk 0:00:09.5]} 65... Nf5 {[%clk 0:00:07.8]} 66. Bb2 {[%clk 0:00:09.6]} 66...
Nh6 {[%clk 0:00:07.9]} 67. g4 {[%clk 0:00:10.1]} 67... hxg4 {[%clk 0:00:07.5]}
68. fxg4 {[%clk 0:00:10.7]} 68... Nf7 {[%clk 0:00:07.5]} 69. h5+ {[%clk
0:00:10.9]} 69... Kh7 {[%clk 0:00:07.6]} 70. Kf5 {[%clk 0:00:11.3]} 70... Nh6+
{[%clk 0:00:05.6]} 71. Kg5 {[%clk 0:00:11]} 71... Nf7+ {[%clk 0:00:05.7]} 72.
Kf4 {[%clk 0:00:10.9]} 72... g6 {[%clk 0:00:04.6]} 73. hxg6+ {[%clk 0:00:07.9]}
73... Kxg6 {[%clk 0:00:05.5]} 74. Bd4 {[%clk 0:00:08.4]} 74... Nh6 {[%clk
0:00:05.4]} 75. g5 {[%clk 0:00:08.6]} 75... Nf7 {[%clk 0:00:05.5]} 76. Bf6
{[%clk 0:00:09.5]} 76... Nxg5 {[%clk 0:00:06.4]} 1/2-1/2